bitfinex-derivatives/quotes_SOLF0:USTF0_20250730
["timestamp","ask_amount","ask_price","bid_price","bid_amount"]
[1753865716118,3.08,181.12,181.08,3.07]
[1753865716314,3.08,181.12,181.07,224.2669805]
[1753865716515,3.08,181.09,181.07,224.2669805]
[1753865717320,5.5221,181.1,181.07,227.3369805]
[1753865717321,3.08,181.08,181.07,227.3369805]
[1753865717924,3.08,181.08,181.07,119.0]
[1753865718421,8.6025,181.08,181.07,119.0]
[1753865718719,3.08,181.08,181.07,119.0]
[1753865719320,8.6025,181.08,181.04,118.94]
[1753865719517,3.08,181.07,181.04,122.01]
[1753865719712,128.62441814,181.21,181.05,3.07]
[1753865719922,3.08,181.12,181.05,3.07]
[1753865720222,3.08,181.1,181.05,3.07]
[1753865720418,3.08,181.1,181.06,3.07]
[1753865720719,3.08,181.08,181.06,3.07]
[1753865720915,2.71131941,181.11,181.06,3.07]
[1753865721116,3.08,181.09,181.08,3.07]
[1753865721520,5.5222,181.1,181.04,118.94]
[1753865721727,3.21,181.08,181.07,3.01]
[1753865722024,5.5213,181.13,181.08,5.5225]
[1753865722225,3.21,181.11,181.1,3.01]
[1753865722621,3.21,181.1,181.09,3.01]
[1753865723114,3.21,181.11,181.04,5.72131941]
[1753865723329,2.71131941,181.1,181.04,3.01]
[1753865723520,3.21,181.11,181.05,3.01]
[1753865725125,3.21,181.1,181.07,3.01]
[1753865725625,3.21,181.12,181.07,3.01]
[1753865726627,2.71131941,181.16,181.07,3.01]
[1753865726824,2.71131941,181.16,181.08,8.5325]
[1753865726825,3.21,181.15,181.08,8.5325]
[1753865727329,5.5216,181.12,181.08,3.01]
[1753865727528,2.71131941,181.14,181.08,3.01]
[1753865727831,3.21,181.13,181.08,3.01]
[1753865728026,5.5216,181.12,181.08,3.01]
[1753865728328,3.21,181.11,181.08,3.01]
[1753865728724,5.5216,181.12,181.08,8.5325]
[1753865728918,3.21,181.1,181.09,3.01]
[1753865730833,3.21,181.08,181.07,3.01]
[1753865732620,3.21,181.08,181.05,3.01]
[1753865733031,3.21,181.11,181.06,3.01]
[1753865733327,3.21,181.07,181.06,3.01]
[1753865733732,8.7329,181.07,181.06,3.01]
[1753865734430,8.7329,181.07,181.04,124.3435]
[1753865734431,3.21,181.06,181.05,3.01]
[1753865734930,5.5232,181.06,181.05,3.01]
[1753865735135,5.5232,181.06,181.04,118.82]
[1753865735327,2.71131941,181.06,181.0,3.01]
[1753865735527,3.21,181.03,181.01,3.01]
[1753865735728,2.71131941,181.06,181.02,3.01]
[1753865736134,5.524,181.04,181.02,3.01]
[1753865736331,3.21,181.03,181.0,5.5247]
[1753865736537,3.21,181.02,181.01,3.01]
[1753865736930,3.21,181.03,181.02,3.01]
[1753865737132,2.71131941,181.07,180.99,121.53131941]
[1753865737328,3.21,181.04,181.03,3.01]
[1753865737528,3.21,181.06,181.03,3.01]
[1753865738333,3.21,181.06,181.03,8.534]
[1753865738528,3.21,181.06,181.04,3.01]
[1753865738739,3.21,181.04,181.03,3.01]
[1753865738939,2.71131941,181.09,181.03,3.01]
[1753865739339,3.21,181.08,181.03,3.01]
[1753865739638,3.21,181.08,181.02,118.8]
[1753865739836,3.21,181.04,181.02,121.81]
[1753865740039,3.21,181.03,181.02,121.81]
[1753865741040,3.21,181.06,181.03,3.01]
[1753865741340,3.21,181.05,181.02,118.8]
[1753865741541,3.21,181.05,181.02,121.81]
[1753865742042,8.7337,181.05,181.02,121.81]
[1753865742233,3.21,181.03,181.02,121.81]
[1753865742438,3.21,181.06,180.99,3.01]
[1753865742642,3.21,181.06,181.0,118.74]
[1753865743038,3.21,181.03,181.01,3.01]
[1753865743238,3.21,181.02,181.01,3.01]
[1753865744644,3.21,181.06,181.01,3.01]
[1753865744846,8.7332,181.06,181.01,3.01]
[1753865745044,3.21,181.05,181.01,3.01]
[1753865745345,3.21,181.05,181.04,3.01]
[1753865745738,3.21,181.04,181.03,8.5339]
[1753865745943,3.21,181.06,181.05,3.01]
[1753865746239,3.21,181.08,181.05,3.01]
[1753865746445,3.21,181.08,181.06,3.01]
[1753865746636,3.21,181.08,181.07,3.01]
[1753865746942,3.21,181.08,181.05,118.72]
[1753865746943,3.21,181.08,181.05,121.73]
[1753865747339,2.71131941,181.11,181.05,118.72]
[1753865747544,2.71131941,181.16,181.08,2.71131941]
[1753865747747,2.71131941,181.14,181.07,3.01]
[1753865747941,3.21,181.09,181.07,3.01]
[1753865748336,3.21,181.08,181.07,3.01]
[1753865748739,3.21,181.1,181.07,3.01]
[1753865748939,3.21,181.09,181.08,3.01]
[1753865749542,3.21,181.1,181.09,3.01]
[1753865750142,3.21,181.1,181.08,5.5224]
[1753865750342,3.21,181.09,181.08,8.5324]
[1753865751040,3.21,181.09,181.08,5.5224]
[1753865751643,3.21,181.09,181.08,8.6624]
[1753865753047,3.09,181.09,181.08,8.6624]
[1753865753247,3.09,181.1,181.09,3.14]
[1753865754047,3.09,181.1,181.09,8.6622]
[1753865755445,3.09,181.14,181.09,3.14]
[1753865755855,3.09,181.13,181.09,3.14]
[1753865756044,3.09,181.13,181.12,3.14]
[1753865757252,3.09,181.13,181.12,8.6613]
[1753865757554,3.09,181.13,181.11,118.56]
[1753865757956,3.09,181.13,181.08,5.85131941]
[1753865758252,3.09,181.13,181.09,118.54]
[1753865758653,3.09,181.11,181.09,118.54]
[1753865758853,3.09,181.1,181.09,121.68]
[1753865759447,3.09,181.1,180.99,2.71131941]
[1753865759448,3.09,181.1,181.07,3.14]
[1753865760052,8.6122,181.1,181.07,3.14]
[1753865760243,3.09,181.09,181.04,2.71131941]
[1753865760444,5.5232,181.06,181.03,3.14]
[1753865760647,3.09,181.08,181.03,3.14]
[1753865761050,5.523,181.07,181.03,8.664]
[1753865761257,3.09,181.06,181.03,8.664]
[1753865761456,3.09,181.06,181.03,3.14]
[1753865761656,5.523,181.07,181.03,8.664]
[1753865761854,3.09,181.04,181.03,8.664]
[1753865762059,2.71131941,181.09,181.01,118.54]
[1753865762259,3.09,181.03,181.02,8.6643]
[1753865763056,3.09,181.03,181.02,5.5243]
[1753865763453,3.09,181.03,181.02,8.6643]
[1753865765862,3.09,181.05,181.04,3.14]
[1753865766455,3.09,181.09,181.04,2.71131941]
[1753865766759,3.09,181.09,181.06,3.14]
[1753865766959,3.09,181.09,181.06,5.5229]
[1753865767361,3.09,181.08,181.05,8.6634]
[1753865767562,3.09,181.08,181.03,3.14]
[1753865767959,3.09,181.06,181.04,5.5235]
[1753865768157,4.62454356,181.14,181.03,3.14]
[1753865768158,2.71131941,181.11,181.03,3.14]
[1753865768366,3.09,181.09,181.07,3.14]
[1753865768563,7.33586297,181.15,181.08,3.14]
[1753865768768,3.09,181.11,181.08,5.85131941]
[1753865769063,5.5212,181.13,181.09,8.662]
[1753865769266,3.09,181.11,181.09,8.662]
[1753865769458,3.09,181.11,181.09,5.522]
[1753865769959,3.09,181.11,181.08,2.71131941]
[1753865769960,3.09,181.11,181.08,11.37381941]
[1753865770359,5.5217,181.11,181.08,11.37381941]
[1753865770565,3.09,181.1,181.07,8.6628]
[1753865771461,3.09,181.08,181.07,8.6628]
[1753865772768,3.09,181.1,181.08,5.5225]
[1753865772967,2.71131941,181.15,181.08,3.14]
[1753865773168,3.09,181.13,181.08,3.14]
[1753865773665,3.09,181.1,181.07,5.5227]
[1753865773866,3.09,181.1,181.07,8.6627]
[1753865774972,3.09,181.1,181.08,5.5225]
[1753865775273,3.09,181.09,181.08,8.6625]
[1753865775972,3.09,181.09,181.08,3.14]
[1753865776275,3.09,181.08,181.07,8.6628]
[1753865780373,3.09,181.1,181.08,5.5224]
[1753865780572,3.09,181.09,181.08,3.14]
[1753865780772,3.09,181.14,181.08,3.14]
[1753865780977,3.09,181.12,181.09,5.5221]
[1753865781873,3.09,181.12,181.09,8.5821]
[1753865782271,3.09,181.12,181.1,8.5819]
[1753865782472,3.09,181.12,181.1,3.06]
[1753865782673,3.09,181.12,181.09,3.06]
[1753865783677,8.6114,181.12,181.09,8.5821]
[1753865783870,5.5214,181.12,181.09,8.5821]
[1753865784075,3.25,181.1,181.09,8.5821]
[1753865788475,3.25,181.1,181.08,8.23381941]
[1753865788675,5.5218,181.11,181.08,11.29381941]
[1753865788877,3.25,181.09,181.08,11.29381941]
[1753865789474,3.25,181.09,181.08,2.71131941]
[1753865789677,3.25,181.09,181.07,129.59411941]
[1753865789876,3.25,181.09,181.07,126.8828]
[1753865790382,5.522,181.1,181.07,126.8828]
[1753865790679,3.25,181.08,181.07,126.8828]
[1753865793684,3.25,181.13,181.08,3.06]
[1753865793884,3.25,181.11,181.08,3.06]
[1753865794078,3.25,181.11,181.09,3.06]
[1753865794482,7.35515967,181.15,181.08,5.77131941]
[1753865794781,13.74551941,181.26,181.11,3.06]
[1753865794782,3.25,181.13,181.11,3.06]
[1753865794983,7.47112371,181.12,181.11,121.22]
[1753865795176,3.25,181.12,181.11,121.22]
[1753865795783,3.25,181.12,181.11,126.7413]
[1753865798379,3.25,181.12,181.11,8.5813]
[1753865798584,3.25,181.12,181.11,126.7013]
[1753865798780,3.25,181.12,181.11,118.12]
[1753865799685,8.7716,181.11,181.09,118.1]
[1753865799982,3.25,181.1,181.09,118.1]
[1753865801986,3.25,181.1,181.09,123.6222]
[1753865802282,3.25,181.1,181.09,126.6822]
[1753865802584,3.25,181.1,181.09,121.16]
[1753865803086,3.25,181.1,181.09,126.6822]
[1753865803386,3.25,181.1,181.09,118.1]
[1753865805086,3.25,181.1,181.09,121.16]
[1753865805492,3.25,181.1,181.09,118.1]
[1753865806692,3.25,181.1,181.09,126.6822]
[1753865809800,3.25,181.1,181.09,118.1]
[1753865810694,3.25,181.1,181.09,123.6222]
[1753865810890,3.25,181.1,181.09,126.6822]
[1753865811393,3.25,181.1,181.09,118.1]
[1753865812293,3.25,181.1,181.09,121.18]
[1753865813995,3.25,181.1,181.09,126.7022]
[1753865814692,3.24,181.12,181.11,8.6016]
[1753865814893,3.24,181.12,181.11,126.5616]
[1753865814894,7.46480396,181.12,181.11,126.5616]
[1753865815193,4.22480396,181.12,181.11,126.5616]
[1753865815597,7.46480396,181.12,181.11,126.5616]
[1753865816202,3.24,181.12,181.11,126.5616]
[1753865821096,3.24,181.12,181.11,5.5216]
[1753865821302,3.24,181.12,181.08,3.08]
[1753865821500,3.24,181.12,181.09,117.94]
[1753865822000,3.24,181.15,181.1,3.08]
[1753865822202,3.24,181.13,181.12,3.08]
[1753865822402,7.46185057,181.13,181.12,3.08]
[1753865822892,3.24,181.12,181.11,121.02]
[1753865823491,3.24,181.12,181.11,117.94]
[1753865824102,3.24,181.12,181.11,121.02]
[1753865825009,8.7613,181.12,181.11,117.94]
[1753865825205,3.24,181.11,181.09,8.6022]
[1753865825409,3.24,181.11,181.1,117.94]
[1753865826308,3.24,181.11,181.07,3.08]
[1753865826505,3.24,181.11,181.08,117.94]
[1753865826699,4.2222999,181.1,181.04,2.71131941]
[1753865826901,3.24,181.05,181.04,117.94]
[1753865827605,8.7636,181.05,181.04,117.94]
[1753865827808,3.24,181.05,180.99,3.08]
[1753865827999,2.71131941,181.04,180.99,3.08]
[1753865828201,3.24,181.03,181.0,117.94]
[1753865828706,3.24,181.02,181.0,121.02]
[1753865828902,2.71131941,181.06,181.01,3.08]
[1753865829097,3.24,181.03,181.01,8.6046]
[1753865829404,3.24,181.05,181.03,3.08]
[1753865829703,3.24,181.05,181.02,121.04]
[1753865829907,3.24,181.06,181.03,3.08]
[1753865830104,5.5222,181.1,181.06,5.523]
[1753865830303,4.21449343,181.09,181.07,3.08]
[1753865830609,4.21449343,181.08,181.07,3.08]
[1753865830805,3.24,181.1,181.07,3.08]
[1753865830995,5.5218,181.11,181.07,3.08]
[1753865831201,3.24,181.08,181.07,3.08]
[1753865832399,3.24,181.08,181.06,126.19441941]
[1753865832608,3.24,181.07,181.06,129.27441941]
[1753865833411,3.24,181.07,181.06,126.5631]
[1753865834312,3.24,181.07,181.06,121.04]
[1753865835012,3.24,181.07,181.06,126.5632]
[1753865835210,3.24,181.08,181.07,3.08]
[1753865838403,3.24,181.08,181.07,8.6029]
[1753865842618,3.24,181.08,181.07,3.08]
[1753865848021,3.12,181.13,181.07,3.08]
[1753865848317,4.24847941,181.12,181.09,3.1]
[1753865848523,5.5215,181.12,181.1,117.94]
[1753865848919,3.12,181.15,181.1,117.94]
[1753865849120,5.521,181.13,181.1,117.94]
[1753865849318,7.36821339,181.12,181.1,121.04]
[1753865849519,3.12,181.11,181.1,117.94]
[1753865850823,3.12,181.11,181.08,8.23381941]
[1753865851024,3.12,181.11,181.09,121.04]
[1753865852328,3.12,181.1,181.09,117.94]
[1753865853024,3.12,181.1,181.09,121.04]
[1753865855128,3.12,181.1,181.09,126.5622]
[1753865856330,3.12,181.1,181.09,3.1]
[1753865856520,3.12,181.1,181.09,121.04]
[1753865857729,3.12,181.1,181.09,126.5623]
[1753865858426,3.12,181.09,181.07,2.71131941]
[1753865858630,3.12,181.09,181.08,117.92]
[1753865859932,3.12,181.09,181.08,121.02]
[1753865860128,3.12,181.09,181.08,117.92]
[1753865860932,3.12,181.09,181.08,123.4426]
[1753865861123,3.12,181.09,181.08,126.5426]
[1753865867333,3.12,181.09,181.08,117.92]
[1753865867729,3.12,181.09,181.05,3.1]
[1753865867930,2.71131941,181.12,181.03,2.71131941]
[1753865868131,3.12,181.09,181.02,3.1]
[1753865868331,5.5243,181.03,181.0,3.1]
[1753865868531,3.12,181.02,181.01,117.92]
[1753865869431,3.12,181.02,180.98,371.24]
[1753865869638,3.12,181.02,180.99,117.92]
[1753865870734,5.5248,181.01,180.99,117.92]
[1753865871038,3.12,181.0,180.99,117.92]
[1753865872438,8.645,181.0,180.99,117.92]
[1753865872941,5.5254,180.99,180.97,3.24]
[1753865873146,3.12,180.98,180.97,117.92]
[1753865873548,3.12,180.98,180.97,121.16]
[1753865874947,3.12,180.98,180.97,126.6859]
[1753865876440,3.12,180.98,180.97,121.16]
[1753865877948,3.12,180.98,180.95,3.24]
[1753865878143,3.12,180.98,180.96,117.94]
[1753865878747,8.6457,180.98,180.96,117.94]
[1753865879045,3.12,180.97,180.96,117.94]
[1753865879250,3.12,180.97,180.96,121.18]
[1753865879748,3.12,180.97,180.96,117.94]
[1753865880342,3.12,180.98,180.96,121.18]
[1753865880552,3.12,180.98,180.96,117.94]
[1753865881147,3.12,180.98,180.96,121.18]
[1753865881441,3.12,180.98,180.97,3.24]
[1753865882853,3.12,180.98,180.96,117.94]
[1753865883349,5.5261,180.97,180.92,123.4874]
[1753865883553,3.12,180.95,180.92,123.4874]
[1753865883753,3.12,180.95,180.94,3.24]
[1753865884847,8.6459,180.97,180.94,3.24]
[1753865885052,3.12,180.96,180.94,3.24]
[1753865885247,5.5259,180.97,180.93,5.5271]
[1753865885453,3.12,180.95,180.94,3.24]
[1753865886254,3.12,180.95,180.92,129.43861941]
[1753865886455,3.12,180.95,180.93,3.24]
[1753865887257,2.71131941,180.97,180.92,117.96]
[1753865887451,3.12,180.96,180.92,117.96]
[1753865887756,3.12,180.96,180.93,3.24]
[1753865888155,3.12,180.96,180.92,117.96]
[1753865888862,3.12,180.96,180.92,121.2]
[1753865889856,5.5268,180.95,180.92,121.2]
[1753865890060,3.12,180.94,180.92,121.2]
[1753865890558,5.5268,180.95,180.92,121.2]
[1753865890757,3.12,180.93,180.92,121.2]
[1753865891954,2.71131941,180.98,180.9,3.24]
[1753865892159,3.12,180.95,180.9,121.2]
[1753865892553,5.5273,180.93,180.88,8.7684]
[1753865892755,3.12,180.91,180.9,3.24]
[1753865894251,3.12,180.91,180.89,3.24]
[1753865894761,3.12,180.91,180.88,117.96]
[1753865894958,3.12,180.91,180.89,3.24]
[1753865895158,3.12,180.93,180.89,3.24]
[1753865895760,8.6473,180.93,180.89,3.24]
[1753865895961,3.12,180.92,180.89,3.24]
[1753865896162,3.12,180.92,180.88,3.24]
[1753865897262,5.5279,180.91,180.88,3.24]
[1753865897463,3.12,180.9,180.88,3.24]
[1753865897659,5.5279,180.91,180.86,3.24]
[1753865897660,3.12,180.91,180.86,3.24]
[1753865898062,3.12,180.87,180.86,3.24]
[1753865898459,3.12,180.87,180.85,3.24]
[1753865898665,3.12,180.86,180.85,3.24]
[1753865899368,3.12,180.86,180.85,8.7696]
[1753865899665,3.12,180.86,180.85,3.24]
[1753865899865,3.12,180.9,180.85,3.24]
[1753865900067,3.12,180.93,180.86,2.71131941]
[1753865900267,2.71131941,180.94,180.89,3.24]
[1753865900268,3.12,180.94,180.89,3.24]
[1753865900563,3.12,180.95,180.9,3.24]
[1753865900756,2.71131941,181.0,180.92,5.5274]
[1753865900956,2.71131941,181.0,180.9,2.71131941]
[1753865900957,3.12,180.95,180.93,3.24]
[1753865901161,5.5265,180.95,180.91,3.24]
[1753865901370,3.12,180.94,180.91,3.24]
[1753865901761,3.24,180.93,180.91,3.24]
[1753865901966,3.24,180.93,180.9,2.71131941]
[1753865901967,3.24,180.93,180.92,3.01]
[1753865902468,5.5265,180.95,180.92,3.01]
[1753865902764,3.24,180.96,180.93,8.5368]
[1753865902969,3.24,180.98,180.93,3.01]
[1753865903166,5.5259,180.97,180.93,3.01]
[1753865903566,8.7659,180.97,180.93,3.01]
[1753865903863,3.24,180.96,180.93,3.01]
[1753865904371,3.24,180.96,180.94,5.5268]
[1753865904569,3.24,180.96,180.95,3.01]
[1753865904771,3.24,180.96,180.92,8.23851941]
[1753865904963,3.24,180.95,180.92,11.24851941]
[1753865905163,5.5262,180.96,180.93,3.01]
[1753865905364,3.24,180.94,180.93,3.01]
[1753865905862,3.24,180.96,180.93,8.5371]
[1753865906070,3.24,180.95,180.94,3.01]
[1753865908471,3.24,180.95,180.92,2.71131941]
[1753865908676,3.24,180.95,180.92,5.72131941]
[1753865909076,5.5265,180.95,180.92,11.24851941]
[1753865909277,3.24,180.93,180.92,11.24851941]
[1753865909679,3.24,180.99,180.93,8.5369]
[1753865909977,2.71131941,181.0,180.94,3.01]
[1753865909978,3.24,180.97,180.94,3.01]
[1753865910279,5.5262,180.97,180.94,3.01]
[1753865910578,3.24,180.95,180.94,3.01]
[1753865911779,3.24,180.98,180.96,3.01]
[1753865912080,3.24,181.01,180.94,2.71131941]
[1753865912276,5.5259,180.98,180.94,8.23801941]
[1753865912578,3.24,180.96,180.95,3.01]
[1753865913279,3.24,180.96,180.93,5.5271]
[1753865913481,3.24,180.96,180.92,3.01]
[1753865914180,3.24,180.96,180.93,8.5371]
[1753865914479,3.24,180.96,180.93,3.01]
[1753865915482,3.24,180.94,180.93,8.537]
[1753865917081,3.24,180.93,180.92,11.24871941]
[1753865918276,2.71131941,180.96,180.9,5.5278]
[1753865918475,3.24,180.94,180.9,5.5278]
[1753865918674,5.95131941,180.94,180.88,123.5084]
[1753865918868,7.56016789,180.93,180.88,117.98]
[1753865919074,3.24,180.93,180.88,117.98]
[1753865919374,3.24,180.93,180.86,3.01]
[1753865920080,3.24,180.9,180.87,3.01]
[1753865920582,5.5285,180.89,180.87,3.01]
[1753865920781,2.71131941,180.92,180.85,145.97808901]
[1753865920978,3.24,180.89,180.88,3.01]
[1753865921178,3.24,180.89,180.88,8.5386]
[1753865923085,3.24,180.91,180.9,3.01]
[1753865923982,3.24,180.9,180.88,8.5386]
[1753865924183,3.24,180.89,180.88,3.01]
[1753865924383,3.24,180.93,180.86,3.01]
[1753865924583,3.24,180.91,180.86,8.539]
[1753865925687,5.5284,180.89,180.86,3.01]
[1753865926076,3.24,180.87,180.86,3.01]
[1753865926481,3.24,180.87,180.86,8.5393]
[1753865926787,3.24,180.89,180.86,3.01]
[1753865926987,3.24,180.88,180.87,3.01]
[1753865927486,3.24,180.88,180.85,151.8061696]
[1753865927686,3.24,180.87,180.86,3.01]
[1753865929387,3.24,180.86,180.85,3.01]
[1753865929582,3.24,180.86,180.84,3.01]
[1753865929791,3.24,180.87,180.83,117.96]
[1753865930287,5.5292,180.87,180.84,3.01]
[1753865930591,3.24,180.85,180.82,8.5403]
[1753865930890,3.24,180.85,180.82,3.01]
[1753865931082,3.24,180.85,180.8,120.69131941]
[1753865931291,3.24,180.85,180.81,3.08]
[1753865931784,3.24,180.85,180.81,5.5305]
[1753865931989,3.24,180.85,180.82,3.08]
[1753865932485,3.2,180.85,180.84,3.08]
[1753865933393,3.2,180.85,180.82,5.5304]
[1753865933584,3.2,180.85,180.83,3.08]
[1753865934289,5.5296,180.85,180.83,3.08]
[1753865934490,3.2,180.84,180.83,3.08]
[1753865934992,5.5296,180.85,180.81,5.5307]
[1753865935292,3.2,180.83,180.82,3.08]
[1753865937589,3.2,180.82,180.81,8.6107]
[1753865938495,3.2,180.82,180.81,3.08]
[1753865938695,3.2,180.82,180.8,126.591]
[1753865938896,3.2,180.82,180.8,121.06]
[1753865939292,3.2,180.8,180.79,3.08]
[1753865939691,3.2,180.8,180.78,8.6116]
[1753865940288,3.2,180.79,180.78,8.6116]
[1753865940492,2.71131941,180.84,180.79,5.5312]
[1753865940702,3.2,180.81,180.8,3.08]
[1753865941092,3.2,180.81,180.8,8.6111]
[1753865941288,5.5304,180.83,180.8,5.5311]
[1753865941590,3.2,180.82,180.81,3.08]
[1753865942800,3.2,180.85,180.82,3.08]
[1753865943098,3.2,180.84,180.83,3.08]
[1753865944288,8.7299,180.84,180.83,3.08]
[1753865944599,8.7299,180.84,180.81,5.5306]
[1753865944802,3.2,180.83,180.82,3.08]
[1753865946096,5.5295,180.86,180.84,3.08]
[1753865946495,2.71131941,180.89,180.82,3.08]
[1753865946694,3.2,180.88,180.82,3.08]
[1753865947191,5.5298,180.85,180.82,3.08]
[1753865947398,3.2,180.84,180.82,3.08]
[1753865947792,5.5291,180.87,180.83,5.53]
[1753865947994,3.2,180.86,180.82,3.08]
[1753865948400,3.2,180.86,180.85,5.5296]
[1753865948599,3.2,180.86,180.85,8.6096]
[1753865949598,3.2,180.86,180.85,3.08]
[1753865951204,3.2,180.86,180.83,8.6101]
[1753865951705,5.5293,180.86,180.83,8.6101]
[1753865951898,3.2,180.85,180.83,8.6101]
[1753865952295,3.2,180.85,180.84,8.6099]
[1753865953199,5.5287,180.88,180.84,8.6099]
[1753865953400,3.2,180.86,180.85,3.08]
[1753865953900,3.2,180.86,180.84,3.08]
[1753865954306,3.2,180.86,180.83,5.5301]
[1753865954506,3.2,180.86,180.83,8.6101]
[1753865955301,5.5293,180.86,180.83,8.6101]
[1753865955499,3.2,180.84,180.82,118.0]
[1753865956809,5.5296,180.85,180.82,121.08]
[1753865957001,3.2,180.84,180.82,118.0]
[1753865957408,3.2,180.84,180.83,3.08]
[1753865957902,3.2,180.87,180.85,3.08]
[1753865958207,3.2,180.87,180.86,3.08]
[1753865959110,3.2,180.87,180.86,8.6093]
[1753865959408,3.2,180.87,180.86,3.08]
[1753865960209,3.2,180.87,180.85,3.08]
[1753865960610,3.2,180.86,180.85,3.08]
[1753865967612,3.2,180.86,180.84,5.5298]
[1753865967808,3.2,180.86,180.84,8.7098]
[1753865970318,3.2,180.86,180.81,5.89131941]
[1753865970518,3.2,180.86,180.81,123.85131941]
[1753865971017,2.71131941,180.87,180.81,117.96]
[1753865971217,7.28369352,180.86,180.79,3.18]
[1753865971520,2.95,180.84,180.79,3.18]
[1753865971717,2.95,180.81,180.79,3.18]
[1753865972214,2.95,180.8,180.78,121.14]
[1753865972607,2.95,180.8,180.78,117.96]
[1753865973619,5.5314,180.79,180.78,117.96]
[1753865973917,8.4814,180.79,180.78,117.96]
[1753865974217,2.95,180.78,180.76,3.18]
[1753865974420,2.95,180.78,180.75,269.64479186]
[1753865974816,8.4817,180.78,180.75,117.96]
[1753865975015,2.95,180.77,180.75,117.96]
[1753865975624,2.95,180.76,180.75,117.96]
[1753865976017,2.95,180.76,180.75,121.14]
[1753865979432,2.95,180.76,180.75,117.96]
[1753865980439,5.5324,180.76,180.73,5.5332]
[1753865980736,2.95,180.75,180.73,123.5132]
[1753865980931,2.95,180.75,180.73,121.16]
[1753865982335,2.95,180.75,180.73,3.18]
[1753865982733,2.95,180.74,180.71,5.5338]
[1753865983343,2.95,180.74,180.7,3.18]
[1753865983638,5.5336,180.72,180.69,3.18]
[1753865983841,2.95,180.71,180.69,3.18]
[1753865984233,2.95,180.7,180.65,3.18]
[1753865984734,2.95,180.7,180.66,3.18]
[1753865984936,2.95,180.7,180.67,8.7148]
[1753865985137,2.95,180.7,180.67,3.18]
[1753865985932,2.95,180.7,180.64,2.71131941]
[1753865986139,2.95,180.7,180.68,3.18]
[1753865986639,2.95,180.7,180.67,8.7148]
[1753865986835,8.4842,180.7,180.67,3.18]
[1753865987036,2.95,180.69,180.67,3.18]